[Event "Early-Titled-Tuesday-Blitz-August-29-2023"]
[Site "Chess.com"]
[Date "2023.08.29"]
[Round "11"]
[White "FormerProdigy"]
[Black "Orest_Vovk"]
[Result "1-0"]
[WhiteElo "2868"]
[BlackElo "2587"]
[TimeControl "180+1"]
[EndTime "10:02:24 PDT"]
[Termination "FormerProdigy won by resignation"]

1. e4 {[%clk 0:03:00.9]} 1... g5 {[%clk 0:02:52.4]} 2. d4 {[%clk 0:03:00.7]}
2... g4 {[%clk 0:02:52.3]} 3. Nc3 {[%clk 0:02:46.9]} 3... Bg7 {[%clk 0:02:49.9]}
4. h3 {[%clk 0:02:44.1]} 4... c5 {[%clk 0:02:44.3]} 5. dxc5 {[%clk 0:02:31.6]}
5... Bxc3+ {[%clk 0:02:42.9]} 6. bxc3 {[%clk 0:02:32.5]} 6... g3 {[%clk
0:02:38.7]} 7. fxg3 {[%clk 0:02:33.4]} 7... Nc6 {[%clk 0:02:37.8]} 8. Be3 {[%clk
0:02:27.1]} 8... Qa5 {[%clk 0:02:35.4]} 9. Qd2 {[%clk 0:02:25.3]} 9... Nf6
{[%clk 0:02:31.4]} 10. Bd3 {[%clk 0:02:25.7]} 10... b6 {[%clk 0:02:10.8]} 11.
cxb6 {[%clk 0:02:26.6]} 11... axb6 {[%clk 0:02:08.8]} 12. Nf3 {[%clk 0:02:27.2]}
12... d6 {[%clk 0:02:06]} 13. O-O {[%clk 0:02:23.6]} 13... Rg8 {[%clk
0:01:40.9]} 14. g4 {[%clk 0:02:23.2]} 14... Bxg4 {[%clk 0:01:30.2]} 15. hxg4
{[%clk 0:02:24.1]} 15... Nxg4 {[%clk 0:01:29.5]} 16. Rab1 {[%clk 0:02:12.5]}
16... Qh5 {[%clk 0:01:26.4]} 17. Bb5 {[%clk 0:02:11.5]} 17... Rc8 {[%clk
0:01:21.2]} 18. Qd5 {[%clk 0:02:02.6]} 18... Qxd5 {[%clk 0:00:58.1]} 19. exd5
{[%clk 0:02:03.5]} 19... Nxe3 {[%clk 0:00:58.4]} 20. Bxc6+ {[%clk 0:02:04]}
20... Kd8 {[%clk 0:00:52.7]} 21. Rf2 {[%clk 0:02:01.7]} 21... e5 {[%clk
0:00:19.2]} 22. Rxb6 {[%clk 0:01:58.6]} 22... f5 {[%clk 0:00:17.3]} 23. a4
{[%clk 0:01:47.5]} 23... Ke7 {[%clk 0:00:16.1]} 24. a5 {[%clk 0:01:42.8]} 24...
Rg4 {[%clk 0:00:08.2]} 25. a6 {[%clk 0:01:15.8]} 25... Rcg8 {[%clk 0:00:07.8]}
26. Ne1 {[%clk 0:01:13.3]} 26... Re4 {[%clk 0:00:06.6]} 27. a7 {[%clk
0:01:11.3]} 27... Ng4 {[%clk 0:00:06.3]} 28. Rf1 {[%clk 0:01:05.8]} 28... Ne3
{[%clk 0:00:05.7]} 29. Rb7+ {[%clk 0:01:05]} 29... Kf6 {[%clk 0:00:04.6]} 30.
Rb8 {[%clk 0:01:05.9]} 30... Rg3 {[%clk 0:00:03]} 31. a8=Q {[%clk 0:01:04.7]}
1-0

[Event "Early-Titled-Tuesday-Blitz-August-29-2023"]
[Site "Chess.com"]
[Date "2023.08.29"]
[Round "11"]
[White "enriquebutti"]
[Black "Pilopa"]
[Result "0-1"]
[WhiteElo "2268"]
[BlackElo "2689"]
[TimeControl "180+1"]
[EndTime "10:02:24 PDT"]
[Termination "Pilopa won by resignation"]

1. d4 {[%clk 0:02:59.5]} 1... Nf6 {[%clk 0:02:59.3]} 2. Nf3 {[%clk 0:02:58.2]}
2... e6 {[%clk 0:02:57.2]} 3. e3 {[%clk 0:02:57.8]} 3... d5 {[%clk 0:02:54]} 4.
Bd3 {[%clk 0:02:57]} 4... Nbd7 {[%clk 0:02:51.7]} 5. O-O {[%clk 0:02:55.9]} 5...
Be7 {[%clk 0:02:50.9]} 6. b3 {[%clk 0:02:55.3]} 6... O-O {[%clk 0:02:50.3]} 7.
Bb2 {[%clk 0:02:55.4]} 7... a5 {[%clk 0:02:50.9]} 8. c4 {[%clk 0:02:53.1]} 8...
c6 {[%clk 0:02:48.5]} 9. Nc3 {[%clk 0:02:51.7]} 9... Bb4 {[%clk 0:02:40.4]} 10.
Qe2 {[%clk 0:02:45.7]} 10... Bxc3 {[%clk 0:02:15.3]} 11. Bxc3 {[%clk 0:02:44.9]}
11... Ne4 {[%clk 0:02:15.9]} 12. Bb2 {[%clk 0:02:44.5]} 12... f5 {[%clk
0:02:14.1]} 13. cxd5 {[%clk 0:02:41.4]} 13... exd5 {[%clk 0:02:13.1]} 14. Ne5
{[%clk 0:02:40.9]} 14... Nxe5 {[%clk 0:02:12.7]} 15. dxe5 {[%clk 0:02:40.6]}
15... Be6 {[%clk 0:02:10]} 16. f3 {[%clk 0:02:38.5]} 16... Ng5 {[%clk
0:02:04.5]} 17. Qf2 {[%clk 0:02:26.5]} 17... a4 {[%clk 0:02:01.9]} 18. Qg3
{[%clk 0:02:25]} 18... Nf7 {[%clk 0:01:53.3]} 19. f4 {[%clk 0:02:23.3]} 19...
axb3 {[%clk 0:01:41.2]} 20. axb3 {[%clk 0:02:22.4]} 20... Qe7 {[%clk 0:01:41.7]}
21. Qh3 {[%clk 0:02:19]} 21... Nh6 {[%clk 0:01:40.5]} 22. Qf3 {[%clk 0:02:11]}
22... Qb4 {[%clk 0:01:36.4]} 23. Bc2 {[%clk 0:02:06.6]} 23... Qd2 {[%clk
0:01:29.3]} 24. Qf2 {[%clk 0:02:00]} 24... Qxf2+ {[%clk 0:01:23.9]} 25. Rxf2
{[%clk 0:01:59.4]} 25... Rxa1+ {[%clk 0:01:22.1]} 26. Bxa1 {[%clk 0:01:58.7]}
26... Ra8 {[%clk 0:01:21.9]} 27. Bd4 {[%clk 0:01:58.1]} 27... Ra5 {[%clk
0:01:06.7]} 28. b4 {[%clk 0:01:57]} 28... Ra3 {[%clk 0:01:03.4]} 29. h3 {[%clk
0:01:53.4]} 29... Kf7 {[%clk 0:00:58.9]} 30. Rd2 {[%clk 0:01:49.7]} 30... Ng8
{[%clk 0:00:57.6]} 31. Kf2 {[%clk 0:01:45.2]} 31... Ne7 {[%clk 0:00:57.5]} 32.
Bd1 {[%clk 0:01:37.4]} 32... Ng6 {[%clk 0:00:57.1]} 33. g3 {[%clk 0:01:31.4]}
33... Nf8 {[%clk 0:00:57]} 34. Bh5+ {[%clk 0:01:30]} 34... g6 {[%clk 0:00:56.7]}
35. Be2 {[%clk 0:01:29.1]} 35... Bd7 {[%clk 0:00:55.8]} 36. Rb2 {[%clk
0:01:23.5]} 36... Ne6 {[%clk 0:00:55.5]} 37. Bf3 {[%clk 0:01:19]} 37... Nxd4
{[%clk 0:00:42.5]} 38. exd4 {[%clk 0:01:18.5]} 38... Rd3 {[%clk 0:00:43.1]} 39.
b5 {[%clk 0:01:15.9]} 39... Rxd4 {[%clk 0:00:40.3]} 40. bxc6 {[%clk 0:01:15.3]}
40... Bxc6 {[%clk 0:00:36.4]} 41. Ra2 {[%clk 0:01:13.6]} 41... Rb4 {[%clk
0:00:34.6]} 42. Ra8 {[%clk 0:01:12.3]} 42... Rb2+ {[%clk 0:00:34.7]} 43. Ke3
{[%clk 0:01:11.3]} 43... d4+ {[%clk 0:00:33.5]} 0-1

[Event "Early-Titled-Tuesday-Blitz-August-29-2023"]
[Site "Chess.com"]
[Date "2023.08.29"]
[Round "11"]
[White "jk13"]
[Black "Angry_Twin"]
[Result "0-1"]
[WhiteElo "2665"]
[BlackElo "2947"]
[TimeControl "180+1"]
[EndTime "10:02:26 PDT"]
[Termination "Angry_Twin won by resignation"]

1. e4 {[%clk 0:03:00.9]} 1... c5 {[%clk 0:02:59.5]} 2. c3 {[%clk 0:03:01.2]}
2... Nf6 {[%clk 0:02:59.5]} 3. e5 {[%clk 0:03:01.7]} 3... Nd5 {[%clk 0:03:00.2]}
4. Bc4 {[%clk 0:03:02.3]} 4... e6 {[%clk 0:03:00.6]} 5. Nf3 {[%clk 0:03:01.8]}
5... d6 {[%clk 0:03:01]} 6. d4 {[%clk 0:03:02.4]} 6... cxd4 {[%clk 0:03:01.4]}
7. cxd4 {[%clk 0:03:03.3]} 7... Nc6 {[%clk 0:03:00.9]} 8. Qe2 {[%clk 0:03:03.8]}
8... Be7 {[%clk 0:03:01.3]} 9. O-O {[%clk 0:03:04.4]} 9... O-O {[%clk
0:03:01.6]} 10. a3 {[%clk 0:03:04]} 10... Qc7 {[%clk 0:02:53.6]} 11. Bd2 {[%clk
0:02:50.6]} 11... Qb6 {[%clk 0:02:50.3]} 12. Bxd5 {[%clk 0:02:42.5]} 12... exd5
{[%clk 0:02:50]} 13. Bc3 {[%clk 0:02:16.2]} 13... Be6 {[%clk 0:02:45]} 14. exd6
{[%clk 0:02:11.6]} 14... Bxd6 {[%clk 0:02:45]} 15. Nbd2 {[%clk 0:02:12.3]} 15...
Rfe8 {[%clk 0:02:45]} 16. Qd3 {[%clk 0:02:12.9]} 16... h6 {[%clk 0:02:36.6]} 17.
Rfe1 {[%clk 0:02:13.4]} 17... Na5 {[%clk 0:02:21.4]} 18. Ne5 {[%clk 0:01:57.5]}
18... Rac8 {[%clk 0:02:18]} 19. Rac1 {[%clk 0:01:53.6]} 19... Nc4 {[%clk
0:02:16.3]} 20. Ndxc4 {[%clk 0:01:48.1]} 20... dxc4 {[%clk 0:02:16.2]} 21. Qf3
{[%clk 0:01:48.7]} 21... Qb5 {[%clk 0:02:13.2]} 22. h3 {[%clk 0:01:42.2]} 22...
Qd5 {[%clk 0:02:13]} 23. Qxd5 {[%clk 0:01:14.9]} 23... Bxd5 {[%clk 0:02:13.9]}
24. Ng4 {[%clk 0:01:02.4]} 24... b5 {[%clk 0:02:03.1]} 25. Rxe8+ {[%clk
0:00:57.6]} 25... Rxe8 {[%clk 0:02:02.4]} 26. Ne3 {[%clk 0:00:58.5]} 26... Bc6
{[%clk 0:02:00]} 27. Bb4 {[%clk 0:00:53.2]} 27... Bf4 {[%clk 0:01:54.1]} 28. Rd1
{[%clk 0:00:50.2]} 28... Bxe3 {[%clk 0:01:36.5]} 29. fxe3 {[%clk 0:00:51.1]}
29... Rxe3 {[%clk 0:01:36.8]} 30. d5 {[%clk 0:00:51.4]} 30... Bd7 {[%clk
0:01:37.5]} 31. Kf2 {[%clk 0:00:46.1]} 31... Rb3 {[%clk 0:01:34.3]} 32. Bc3
{[%clk 0:00:45.3]} 32... a5 {[%clk 0:01:34.3]} 33. Rd2 {[%clk 0:00:36.2]} 33...
b4 {[%clk 0:01:33.8]} 34. axb4 {[%clk 0:00:37.1]} 34... axb4 {[%clk 0:01:34.6]}
35. Bd4 {[%clk 0:00:36.2]} 35... f6 {[%clk 0:01:31.9]} 36. Rc2 {[%clk
0:00:32.1]} 36... Bb5 {[%clk 0:01:31.7]} 37. Rc1 {[%clk 0:00:25.6]} 37... Rd3
{[%clk 0:01:31]} 38. Bc5 {[%clk 0:00:20.1]} 38... b3 {[%clk 0:01:31.4]} 39. d6
{[%clk 0:00:20]} 39... Rd2+ {[%clk 0:01:31.8]} 40. Kg3 {[%clk 0:00:17.7]} 40...
Rxb2 {[%clk 0:01:30.8]} 41. Rd1 {[%clk 0:00:16.5]} 41... Bd7 {[%clk 0:01:28.7]}
42. Re1 {[%clk 0:00:16.8]} 42... Rd2 {[%clk 0:01:23]} 43. Re7 {[%clk 0:00:16.5]}
43... b2 {[%clk 0:01:23.1]} 44. Rxd7 {[%clk 0:00:11]} 44... b1=Q {[%clk
0:01:21.7]} 0-1

[Event "Early-Titled-Tuesday-Blitz-August-29-2023"]
[Site "Chess.com"]
[Date "2023.08.29"]
[Round "11"]
[White "Carlitus2004"]
[Black "Dmitry_Konenkin"]
[Result "1/2-1/2"]
[WhiteElo "2486"]
[BlackElo "2394"]
[TimeControl "180+1"]
[EndTime "10:02:31 PDT"]
[Termination "Game drawn by repetition"]

1. e4 {[%clk 0:02:57.7]} 1... d6 {[%clk 0:02:59.9]} 2. d4 {[%clk 0:02:53.3]}
2... Nf6 {[%clk 0:03:00.4]} 3. Bd3 {[%clk 0:02:52.9]} 3... e5 {[%clk 0:03:00.5]}
4. Nf3 {[%clk 0:02:52]} 4... Nbd7 {[%clk 0:02:59.9]} 5. O-O {[%clk 0:02:50.7]}
5... Be7 {[%clk 0:02:59.8]} 6. Re1 {[%clk 0:02:50.9]} 6... c6 {[%clk 0:02:58.7]}
7. c3 {[%clk 0:02:51.5]} 7... Qc7 {[%clk 0:02:58.7]} 8. a4 {[%clk 0:02:50]} 8...
h6 {[%clk 0:02:58.6]} 9. a5 {[%clk 0:02:49.5]} 9... Nf8 {[%clk 0:02:58.9]} 10.
Na3 {[%clk 0:02:47.8]} 10... g5 {[%clk 0:02:59.2]} 11. Nc4 {[%clk 0:02:47.5]}
11... Ng6 {[%clk 0:02:59.1]} 12. dxe5 {[%clk 0:02:44.9]} 12... dxe5 {[%clk
0:02:59]} 13. Ne3 {[%clk 0:02:42.3]} 13... g4 {[%clk 0:02:46.8]} 14. Nd2 {[%clk
0:02:42.6]} 14... Nf4 {[%clk 0:02:46.6]} 15. Bc4 {[%clk 0:02:41.2]} 15... Be6
{[%clk 0:02:38.9]} 16. Qb3 {[%clk 0:02:41.4]} 16... O-O-O {[%clk 0:02:34.9]} 17.
Nf5 {[%clk 0:02:27.9]} 17... Bc5 {[%clk 0:02:22.7]} 18. Nf1 {[%clk 0:02:22]}
18... Nxe4 {[%clk 0:01:48.7]} 19. Bxe6+ {[%clk 0:01:47]} 19... fxe6 {[%clk
0:01:48.1]} 20. Ne7+ {[%clk 0:01:47.8]} 20... Qxe7 {[%clk 0:01:44.8]} 21. Rxe4
{[%clk 0:01:48]} 21... Qh4 {[%clk 0:01:27.1]} 22. Be3 {[%clk 0:01:45.9]} 22...
Bxe3 {[%clk 0:00:35.6]} 23. fxe3 {[%clk 0:01:43.2]} 23... Ne2+ {[%clk
0:00:29.6]} 24. Kh1 {[%clk 0:01:43.3]} 24... Rhf8 {[%clk 0:00:19.7]} 25. Qxe6+
{[%clk 0:01:41.1]} 25... Rd7 {[%clk 0:00:20.2]} 26. Qxe5 {[%clk 0:01:21.5]}
26... Rdf7 {[%clk 0:00:17.6]} 27. Qe6+ {[%clk 0:01:07.5]} 27... Kb8 {[%clk
0:00:16.3]} 28. Qe5+ {[%clk 0:01:07.7]} 28... Kc8 {[%clk 0:00:16.5]} 29. Qe6+
{[%clk 0:00:40.2]} 29... Kb8 {[%clk 0:00:16.9]} 30. Qe5+ {[%clk 0:00:40.6]}
30... Kc8 {[%clk 0:00:17.5]} 1/2-1/2

[Event "Early-Titled-Tuesday-Blitz-August-29-2023"]
[Site "Chess.com"]
[Date "2023.08.29"]
[Round "11"]
[White "thedjoker98"]
[Black "attack2mateU"]
[Result "1-0"]
[WhiteElo "2606"]
[BlackElo "2723"]
[TimeControl "180+1"]
[EndTime "10:02:34 PDT"]
[Termination "thedjoker98 won by resignation"]

1. d4 {[%clk 0:01:40.6]} 1... Nf6 {[%clk 0:02:57.1]} 2. c4 {[%clk 0:01:40.7]}
2... g6 {[%clk 0:02:57.4]} 3. Nc3 {[%clk 0:01:41]} 3... d5 {[%clk 0:02:57.9]} 4.
e3 {[%clk 0:01:41.4]} 4... Bg7 {[%clk 0:02:57.7]} 5. Qb3 {[%clk 0:01:42.3]} 5...
dxc4 {[%clk 0:02:52]} 6. Bxc4 {[%clk 0:01:43.2]} 6... O-O {[%clk 0:02:52.2]} 7.
Nf3 {[%clk 0:01:42.5]} 7... c5 {[%clk 0:02:45.7]} 8. dxc5 {[%clk 0:01:39.7]}
8... Qa5 {[%clk 0:02:05.6]} 9. O-O {[%clk 0:01:39.5]} 9... Qxc5 {[%clk
0:02:05.3]} 10. e4 {[%clk 0:01:39.7]} 10... Nc6 {[%clk 0:02:02]} 11. Be3 {[%clk
0:01:39.7]} 11... Qh5 {[%clk 0:01:51.8]} 12. Qb5 {[%clk 0:01:39.9]} 12... Bg4
{[%clk 0:01:35.9]} 13. Qxh5 {[%clk 0:01:39.2]} 13... Nxh5 {[%clk 0:01:28.1]} 14.
Be2 {[%clk 0:01:38.7]} 14... Rfc8 {[%clk 0:00:41.4]} 15. Rac1 {[%clk 0:01:34.8]}
15... Bxf3 {[%clk 0:00:31.6]} 16. Bxf3 {[%clk 0:01:34.4]} 16... Nd4 {[%clk
0:00:32.2]} 17. Bxd4 {[%clk 0:01:25.1]} 17... Bxd4 {[%clk 0:00:31.4]} 18. Bxh5
{[%clk 0:01:26]} 18... Bxc3 {[%clk 0:00:30.3]} 19. Bg4 {[%clk 0:01:22.4]} 19...
f5 {[%clk 0:00:25.4]} 20. Bxf5 {[%clk 0:01:17.7]} 20... gxf5 {[%clk 0:00:24.8]}
21. Rxc3 {[%clk 0:01:16.7]} 21... Rxc3 {[%clk 0:00:24.2]} 22. bxc3 {[%clk
0:01:17.6]} 22... fxe4 {[%clk 0:00:24.8]} 23. Re1 {[%clk 0:01:17.9]} 23... Rc8
{[%clk 0:00:24]} 24. Rxe4 {[%clk 0:01:18.2]} 24... Rxc3 {[%clk 0:00:24.3]} 25.
g4 {[%clk 0:01:18.8]} 25... Kf7 {[%clk 0:00:23.2]} 26. a4 {[%clk 0:01:18.4]}
26... a5 {[%clk 0:00:21.8]} 27. Re5 {[%clk 0:01:16.8]} 27... b6 {[%clk 0:00:21]}
28. Rb5 {[%clk 0:01:11.8]} 28... Rc4 {[%clk 0:00:21.5]} 29. h3 {[%clk
0:01:12.1]} 29... Rb4 {[%clk 0:00:20.6]} 30. Rh5 {[%clk 0:01:10.7]} 30... Rxa4
{[%clk 0:00:20.2]} 31. Rxh7+ {[%clk 0:01:10.5]} 31... Ke6 {[%clk 0:00:20.5]} 32.
Rh6+ {[%clk 0:01:10.2]} 32... Ke5 {[%clk 0:00:14]} 33. Rxb6 {[%clk 0:01:11.1]}
33... Kf4 {[%clk 0:00:14.2]} 34. Kg2 {[%clk 0:01:11]} 34... Ra1 {[%clk 0:00:14]}
35. Re6 {[%clk 0:01:10.4]} 35... a4 {[%clk 0:00:06.4]} 36. Rxe7 {[%clk
0:01:10.8]} 36... a3 {[%clk 0:00:07.3]} 37. Ra7 {[%clk 0:01:11]} 37... a2 {[%clk
0:00:07.1]} 38. Ra5 {[%clk 0:01:11.2]} 38... Ke4 {[%clk 0:00:07.2]} 39. h4
{[%clk 0:01:10]} 39... Kf4 {[%clk 0:00:07.4]} 40. g5 {[%clk 0:01:07.5]} 40...
Kg4 {[%clk 0:00:08.3]} 41. g6 {[%clk 0:01:07.1]} 41... Kxh4 {[%clk 0:00:09.2]}
42. g7 {[%clk 0:01:06.9]} 1-0

[Event "Early-Titled-Tuesday-Blitz-August-29-2023"]
[Site "Chess.com"]
[Date "2023.08.29"]
[Round "11"]
[White "BashirliSaadat"]
[Black "Chessbard1972"]
[Result "0-1"]
[WhiteElo "2400"]
[BlackElo "2558"]
[TimeControl "180+1"]
[EndTime "10:02:41 PDT"]
[Termination "Chessbard1972 won by resignation"]

1. d4 {[%clk 0:03:00.9]} 1... Nf6 {[%clk 0:02:59.4]} 2. e3 {[%clk 0:03:00.9]}
2... d5 {[%clk 0:02:58]} 3. Bd3 {[%clk 0:03:01]} 3... g6 {[%clk 0:02:57.7]} 4.
f4 {[%clk 0:03:01.1]} 4... Bg7 {[%clk 0:02:57.6]} 5. Nf3 {[%clk 0:03:00.8]} 5...
O-O {[%clk 0:02:57.4]} 6. O-O {[%clk 0:03:00]} 6... c5 {[%clk 0:02:57.3]} 7. c3
{[%clk 0:03:00.3]} 7... b6 {[%clk 0:02:56.9]} 8. Qe2 {[%clk 0:02:59.3]} 8... a5
{[%clk 0:02:56.5]} 9. Nbd2 {[%clk 0:02:58.9]} 9... Ba6 {[%clk 0:02:55.8]} 10.
Ne5 {[%clk 0:02:57.2]} 10... Bxd3 {[%clk 0:02:55.1]} 11. Qxd3 {[%clk 0:02:56.7]}
11... e6 {[%clk 0:02:55.5]} 12. b3 {[%clk 0:02:55.7]} 12... Qc7 {[%clk
0:02:53.9]} 13. Bb2 {[%clk 0:02:53.1]} 13... Nbd7 {[%clk 0:02:52.2]} 14. Rac1
{[%clk 0:02:53.1]} 14... a4 {[%clk 0:02:50.4]} 15. Qb1 {[%clk 0:02:45.4]} 15...
axb3 {[%clk 0:02:48.5]} 16. axb3 {[%clk 0:02:41.6]} 16... Nxe5 {[%clk 0:02:46]}
17. fxe5 {[%clk 0:02:40.8]} 17... Ng4 {[%clk 0:02:46.3]} 18. Rfe1 {[%clk
0:02:32.5]} 18... f6 {[%clk 0:02:44.9]} 19. h3 {[%clk 0:02:31.2]} 19... Nh6
{[%clk 0:02:42]} 20. exf6 {[%clk 0:02:29.8]} 20... Bxf6 {[%clk 0:02:38]} 21. e4
{[%clk 0:02:29.9]} 21... Bg5 {[%clk 0:02:37.1]} 22. Rcd1 {[%clk 0:02:26.8]}
22... Qg3 {[%clk 0:02:32]} 23. Nf1 {[%clk 0:02:24.2]} 23... Qf2+ {[%clk
0:02:24.3]} 24. Kh1 {[%clk 0:02:21.1]} 24... cxd4 {[%clk 0:02:16.3]} 25. cxd4
{[%clk 0:02:19.3]} 25... Rac8 {[%clk 0:01:59.2]} 26. Nh2 {[%clk 0:01:37.9]}
26... Rc2 {[%clk 0:01:52.7]} 27. Rg1 {[%clk 0:01:36.6]} 27... Rxb2 {[%clk
0:01:51.9]} 28. Qa1 {[%clk 0:01:34.3]} 28... Ra2 {[%clk 0:01:32]} 29. Qb1 {[%clk
0:01:33.4]} 29... Re2 {[%clk 0:01:28.3]} 30. Rdf1 {[%clk 0:01:32.4]} 30... Qxd4
{[%clk 0:01:20.1]} 31. Rxf8+ {[%clk 0:01:30.3]} 31... Kxf8 {[%clk 0:01:20.2]}
32. exd5 {[%clk 0:01:27.9]} 32... exd5 {[%clk 0:01:17.2]} 33. Nf3 {[%clk
0:01:24.4]} 33... Qe3 {[%clk 0:01:07.7]} 34. Nxg5 {[%clk 0:01:21.6]} 34... Qxg5
{[%clk 0:01:07.8]} 35. Qf1+ {[%clk 0:01:21.6]} 35... Nf5 {[%clk 0:01:04.9]} 36.
g4 {[%clk 0:01:17.6]} 36... Qe3 {[%clk 0:00:48.4]} 37. gxf5 {[%clk 0:00:57.3]}
37... Qe4+ {[%clk 0:00:47.7]} 38. Rg2 {[%clk 0:00:55.2]} 38... Qxg2+ {[%clk
0:00:47.5]} 39. Qxg2 {[%clk 0:00:53.8]} 39... Rxg2 {[%clk 0:00:47.7]} 40. Kxg2
{[%clk 0:00:54.7]} 40... gxf5 {[%clk 0:00:48]} 41. Kf3 {[%clk 0:00:55.3]} 41...
Kf7 {[%clk 0:00:48.6]} 42. Kf4 {[%clk 0:00:55.9]} 42... Kf6 {[%clk 0:00:49.2]}
43. b4 {[%clk 0:00:56.6]} 43... b5 {[%clk 0:00:48.6]} 44. h4 {[%clk 0:00:56.5]}
44... h5 {[%clk 0:00:47.8]} 45. Kf3 {[%clk 0:00:57.2]} 45... Ke5 {[%clk
0:00:48.2]} 46. Ke3 {[%clk 0:00:57.8]} 46... f4+ {[%clk 0:00:47]} 47. Kf3 {[%clk
0:00:58]} 47... Kf5 {[%clk 0:00:47.4]} 48. Kf2 {[%clk 0:00:58.5]} 48... Kg4
{[%clk 0:00:47.7]} 49. Ke2 {[%clk 0:00:59.2]} 49... Kxh4 {[%clk 0:00:47.7]} 50.
Kd3 {[%clk 0:00:59.9]} 50... f3 {[%clk 0:00:46.5]} 51. Kd4 {[%clk 0:01:00.8]}
51... f2 {[%clk 0:00:46.5]} 52. Kc5 {[%clk 0:01:00.4]} 52... f1=Q {[%clk
0:00:45.5]} 53. Kxd5 {[%clk 0:01:00.3]} 53... Qc4+ {[%clk 0:00:45.3]} 0-1

[Event "Early-Titled-Tuesday-Blitz-August-29-2023"]
[Site "Chess.com"]
[Date "2023.08.29"]
[Round "11"]
[White "Magila31"]
[Black "Inepton_Fermion"]
[Result "0-1"]
[WhiteElo "2464"]
[BlackElo "2385"]
[TimeControl "180+1"]
[EndTime "10:02:45 PDT"]
[Termination "Inepton_Fermion won by resignation"]

1. d4 {[%clk 0:02:58.9]} 1... Nf6 {[%clk 0:02:57.7]} 2. c4 {[%clk 0:02:57.8]}
2... e6 {[%clk 0:02:57.8]} 3. Nf3 {[%clk 0:02:57.1]} 3... b6 {[%clk 0:02:57.7]}
4. g3 {[%clk 0:02:56.3]} 4... Bb7 {[%clk 0:02:56.1]} 5. Bg2 {[%clk 0:02:55.8]}
5... Bb4+ {[%clk 0:02:56.7]} 6. Nbd2 {[%clk 0:02:53.2]} 6... O-O {[%clk
0:02:51]} 7. O-O {[%clk 0:02:52.5]} 7... d5 {[%clk 0:02:49.6]} 8. Ne5 {[%clk
0:02:50.8]} 8... Be7 {[%clk 0:02:35.5]} 9. b3 {[%clk 0:02:39]} 9... Nbd7 {[%clk
0:02:26.8]} 10. Bb2 {[%clk 0:02:30.8]} 10... c5 {[%clk 0:02:20.6]} 11. dxc5
{[%clk 0:02:28.1]} 11... Nxe5 {[%clk 0:02:05.3]} 12. Bxe5 {[%clk 0:02:25.8]}
12... bxc5 {[%clk 0:01:59.5]} 13. Rc1 {[%clk 0:02:20]} 13... Qb6 {[%clk
0:01:41.9]} 14. e3 {[%clk 0:02:12.8]} 14... Rfd8 {[%clk 0:01:33.9]} 15. Qe2
{[%clk 0:02:10.7]} 15... d4 {[%clk 0:01:28.2]} 16. exd4 {[%clk 0:01:57.6]} 16...
Bxg2 {[%clk 0:01:24.4]} 17. Kxg2 {[%clk 0:01:54.5]} 17... cxd4 {[%clk 0:01:25]}
18. Bxf6 {[%clk 0:01:52]} 18... Bxf6 {[%clk 0:01:25.9]} 19. c5 {[%clk
0:01:51.6]} 19... Qc6+ {[%clk 0:01:20]} 20. Qe4 {[%clk 0:01:51.6]} 20... Rd5
{[%clk 0:01:01.1]} 21. b4 {[%clk 0:01:44.2]} 21... Rc8 {[%clk 0:00:54]} 22. Nc4
{[%clk 0:01:37.4]} 22... Rxc5 {[%clk 0:00:49.6]} 23. bxc5 {[%clk 0:00:56]} 23...
Qxe4+ {[%clk 0:00:49.3]} 24. f3 {[%clk 0:00:55.3]} 24... Qd5 {[%clk 0:00:41.8]}
25. Nd6 {[%clk 0:00:40.9]} 25... Rxc5 {[%clk 0:00:41]} 26. Ne4 {[%clk
0:00:40.9]} 26... Rxc1 {[%clk 0:00:37.7]} 27. Rxc1 {[%clk 0:00:41.6]} 27...
Qxa2+ {[%clk 0:00:37.3]} 28. Kh3 {[%clk 0:00:40.9]} 28... h6 {[%clk 0:00:33.1]}
29. Rc8+ {[%clk 0:00:34.6]} 29... Kh7 {[%clk 0:00:32.7]} 30. Nd6 {[%clk
0:00:35]} 30... e5 {[%clk 0:00:29.2]} 31. Rc7 {[%clk 0:00:19]} 31... Qe6+ {[%clk
0:00:28.8]} 0-1